Cogmind - Beta 13 @@@ ROGUE MODE // 2024.05.13 @ 18:08:42 // Winter2019/RPGLIKE Player: boggy Result: Destroyed by 8R-AWN with 8R-AWN's Boregun Performance ------------- Evolutions (0) 0 Regions Visited (3) 600 Robots Destroyed (38) 190 Value Destroyed (873) 873 Prototype IDs (5) 100 Alien Tech Used (0) 0 Bonus (174) 174 TOTAL SCORE: 1937 Bonus ------- Aligned with FarCom 300 Friendly Fire -126 Cogmind --------- Core Integrity 0/700 Matter 282/300 Energy 220/265 System Corruption 0% Temperature Cool (17) Movement Rolling (110) Ox2 Location -10/Exiles Parts ------- > --- POWER (1) -------- Improved Ion Engine > --- PROPULSION (1) --- Wheel > --- UTILITY (2) ------ Experimental Sensor Array Splice Drone Bay (6/6) > --- WEAPON (4) ------- Particle Cannon Particle Cannon Particle Cannon Particle Cannon > --- INVENTORY (0) ---- (None) Peak State ------------ > --- POWER ------------ Improved Ion Engine > --- PROPULSION ------- Wheel > --- UTILITY ---------- Experimental Sensor Array Trap Reconfigurator > --- WEAPON ----------- Particle Cannon Particle Cannon Particle Cannon Particle Cannon > --- INVENTORY -------- (None) [Rating: 29] Favorites ----------- Power Ion Engine Engine Ion Engine Propulsion Wheel Wheel Wheel Utility Improved Terrain Scanner Device Improved Terrain Scanner Processor 0b10 Alert Chip Weapon Particle Cannon Energy Gun Small Laser Energy Cannon Particle Cannon Build | -11 -10 -10 -10 ------- Run | Yrd Mat Min Exi Slots Evolved 4 | 4 . . . Power . | . . . . Propulsion . | . . . . Utility 1 | 1 . . . Weapon 3 | 3 . . . Parts Attached 27 | 6 13 3 5 Power 3 | 1 2 . . Engine 3 | 1 2 . . Core . | . . . . Reactor . | . . . . Propulsion 3 | 2 1 . . Treads . | . . . . Leg . | . . . . Wheel 3 | 2 1 . . Hover . | . . . . Flight . | . . . . Utility 11 | 2 1 3 5 Device 10 | 2 1 3 4 Storage . | . . . . Processor 1 | . . . 1 Hackware . | . . . . Protection . | . . . . Artifact . | . . . . Weapon 10 | 1 9 . . Energy Gun 1 | 1 . . . Energy Cannon 9 | . 9 . . Ballistic Gun . | . . . . Ballistic Cannon . | . . . . Launcher . | . . . . Special Weapon . | . . . . Impact Weapon . | . . . . Slashing Weapon . | . . . . Piercing Weapon . | . . . . Special Melee Weapon . | . . . . Unidentified Prototypes 5 | . . 2 3 Parts Lost . | . . . . Power . | . . . . Propulsion . | . . . . Utility . | . . . . Weapon . | . . . . Highest Loss Streak . | . . . . To Critical Strikes . | . . . . Average Slot Usage (%) 98 | . 98 99 99 Engine 12 | . 12 12 12 Wheel 12 | . 12 12 12 Device 24 | . 24 24 24 Energy Gun 1 | . 2 . . Energy Cannon 47 | . 46 50 50 Naked Turns . | . . . . Heaviest Build 32 | 6 25 32 32 Greatest Support 15 | 10 15 15 15 Greatest Overweight (x) 2 | 1 2 2 2 Average Overweight (x) 1 | . 1 1 1 Largest Inventory Capacity . | . . . . Average Capacity . | . . . . Most Carried . | . . . . Average Carried . | . . . . Final Capacity . | . . . . Final Carried . | . . . . Class Distribution -------------------- 63% | Skirmisher 21% | Gunner 7% | Hacker-Gunner 6% | Mutant Dominant Class ---------------- Skirmisher | -10/Materials Skirmisher | -10/Mines Gunner | -10/Exiles Resources | -11 -10 -10 -10 ----------- Run | Yrd Mat Min Exi Matter Collected 538 | 260 216 20 42 Remotely . | . . . . Salvage Created 1200 | 211 578 319 92 Parts 81 | 19 43 12 7 Haulers Intercepted 1 | . 1 . . Recyclers Shooed 3 | 2 . 1 . Parts Field Recycled . | . . . . Retrieved Matter . | . . . . Parts Self-Destructed . | . . . . Prevented . | . . . . Kills | -11 -10 -10 -10 ------- Run | Yrd Mat Min Exi Combat Hostiles Destroyed 25 | . 15 3 7 Cannons 25 | . 15 3 7 Classes Destroyed 9 | 3 5 . 1 Worker 5 | 2 2 1 . Tunneler 5 | 5 . . . Hauler 1 | . 1 . . Recycler 3 | 1 . 2 . Operator 2 | . 2 . . Watcher 3 | . 3 . . Swarmer 3 | . 3 . . Grunt 15 | . 12 3 . Assembled 7 | . . . 7 Best Kill Streak 8 | 7 3 5 8 Combat Bots Only 7 | . 3 2 7 Max Kills in Single Turn 2 | 1 2 2 1 Gunslinging . | . . . . Exploded . | . . . . Melee . | . . . . Uniques/NPCs Destroyed 1 | . . . 1 EX-BIN (-10/Exiles) Combat | -11 -10 -10 -10 -------- Run | Yrd Mat Min Exi Hostile Shots Fired 137 | . 68 . 69 Missed 41 | . 18 . 23 Damage Taken 1451 | . 582 . 869 Core 1171 | . 470 . 701 Absorbed by Shields . | . . . . Redirected to Core 942 | . 357 . 585 Ignored by Resistances 45 | . . . 45 Core Remaining (%) 100 | 100 . . . Volleys Fired 124 | 27 66 10 21 Largest 4 | 1 4 4 4 Hottest 272 | 40 272 272 272 Shots Fired 391 | 27 240 40 84 Gun 39 | 27 12 . . Cannon 352 | . 228 40 84 Launcher . | . . . . Special . | . . . . Kinetic . | . . . . Thermal 391 | 27 240 40 84 Explosive . | . . . . Electromagnetic . | . . . . Robot Hit Streak 9 | 7 4 5 9 Robot Miss Streak 5 | 2 5 2 3 Penetration Max . | . . . . Secondary Targets . | . . . . Shots Hit Robots 135 | 19 50 20 46 Core Hits 56 | 9 26 8 13 Critical Kills . | . . . . Critical Parts Destroyed . | . . . . Critical Strikes . | . . . . Melee Attacks . | . . . . Impact . | . . . . Slashing . | . . . . Piercing . | . . . . Sneak Attacks . | . . . . Combat Hostiles . | . . . . Follow-up Attacks . | . . . . Damage Inflicted 2271 | 209 1151 464 447 Guns 253 | 209 44 . . Cannons 1958 | . 1104 407 447 Explosions 57 | . . 57 . Melee . | . . . . Ramming 3 | . 3 . . Kinetic . | . . . . Thermal 2268 | 209 1148 464 447 Explosive . | . . . . Electromagnetic . | . . . . Impact . | . . . . Slashing . | . . . . Piercing . | . . . . Highest Corruption . | . . . . Average Corruption . | . . . . Corruption Purged . | . . . . Corruption Blocked . | . . . . Overload Shots . | . . . . Overflow Damage 50 | . 30 . 20 Projectiles 50 | . 30 . 20 Explosions . | . . . . Melee . | . . . . Knockbacks . | . . . . Impact . | . . . . Kinetic . | . . . . Secondary . | . . . . Self-Inflicted Damage 1 | . 1 . . Shots . | . . . . Rammed 1 | . 1 . . Targets Rammed 1 | . 1 . . Kicked . | . . . . Crushed . | . . . . Highest Temperature 490 | . 490 189 189 Average Temperature 165 | . 182 85 84 Received Heat Transfer 264 | . 264 . . Effects 19 | . 19 . . Shutdowns 4 | . 4 . . Energy Bleed 2 | . 2 . . Interference 7 | . 7 . . Matter Decay 2 | . 2 . . Short Circuit 1 | . 1 . . Damage (major) 3 | . 3 . . Siege Activations . | . . . . Robots Corrupted . | . . . . Combat Hostiles . | . . . . Parts Fried . | . . . . Impact Corruptions . | . . . . Robots Melted . | . . . . Combat Hostiles . | . . . . Parts Melted 6 | 1 3 . 2 Heat Transferred 4475 | 475 2246 790 964 Parts Sabotaged . | . . . . Parts Stolen . | . . . . Parts Stripped . | . . . . Power Chain Reactions . | . . . . Alert | -11 -10 -10 -10 ------- Run | Yrd Mat Min Exi Peak Influence 278 | 40 278 171 . Initial 76 | . 26 76 . Average 111 | 12 117 122 . Maximum Alert Level 1 | . 1 . . Low Security (%) 87 | 100 82 100 . Level 1 12 | . 17 . . Level 2 . | . . . . Level 3 . | . . . . Level 4 . | . . . . Level 5 . | . . . . High Security . | . . . . Max Security . | . . . . Squads Dispatched 3 | . 3 . . Investigation 3 | . 3 . . Extermination . | . . . . Reinforcement . | . . . . Assault . | . . . . Garrison . | . . . . Intercept . | . . . . Searches Triggered . | . . . . Construction Impeded . | . . . . Haulers Reinforced . | . . . . Active Scanning Responses . | . . . . Cargo Convoy Interrupts . | . . . . Stealth | -11 -10 -10 -10 --------- Run | Yrd Mat Min Exi Distress Signals . | . . . . Communications Jammed . | . . . . Distress Signals . | . . . . Times Spotted 31 | . 23 . 8 Peak Tracking Total 9 | . 4 . 9 Tactical Retreats 1 | . 1 . . Traps | -11 -10 -10 -10 ------- Run | Yrd Mat Min Exi Traps Triggered . | . . . . Indirectly . | . . . . Trap Hack Attempts . | . . . . Triggered . | . . . . Disarmed . | . . . . Reprogrammed . | . . . . Reused . | . . . . Traps Extracted . | . . . . Installed . | . . . . Triggered . | . . . . Machines | -11 -10 -10 -10 ---------- Run | Yrd Mat Min Exi Machines Disabled 17 | . 13 1 3 Max in Single Turn 2 | . 2 1 1 Machines Repaired . | . . . . Machines Dismantled . | . . . . Machines Sabotaged . | . . . . Overloaded Fab Kills . | . . . . Hacking | -11 -10 -10 -10 --------- Run | Yrd Mat Min Exi Machines Accessed 12 | . 8 1 3 Terminals 7 | . 7 . . Fabricators . | . . . . Repair Stations . | . . . . Recycling Units 1 | . 1 . . Scanalyzers . | . . . . Garrison Access . | . . . . Total Hacks 55 | . 28 1 26 Successful 43 | . 16 1 26 Failed 12 | . 12 . . Catastrophic 1 | . 1 . . Database Lockouts . | . . . . Manual 1 | . . . 1 Terminals 26 | . 26 . . Fabricators . | . . . . Repair Stations . | . . . . Recycling Units 2 | . 2 . . Scanalyzers . | . . . . Garrison Access . | . . . . Terminal Hacks 43 | . 16 1 26 Record 29 | . 3 . 26 Open Door 1 | . . 1 . Alert Level 2 | . 2 . . Unreport Threat 2 | . 2 . . Locate Traps 2 | . 2 . . Dispatch Records 2 | . 2 . . Surveillance Status 1 | . 1 . . Patrol Status 1 | . 1 . . Hauler Manifests 1 | . 1 . . Registered Components 1 | . 1 . . Zone Layout 1 | . 1 . . Fabricator Hacks . | . . . . Repair Station Hacks . | . . . . Recycling Unit Hacks . | . . . . Scanalyzer . | . . . . Garrison Access Hacks . | . . . . Unauthorized Hacks . | . . . . Terminals . | . . . . Fabricators . | . . . . Repair Stations . | . . . . Recycling Units . | . . . . Scanalyzers . | . . . . Garrison Access . | . . . . Data Cores Recovered . | . . . . Used . | . . . . Hacking Detections 7 | . 7 . . Full Trace Events 5 | . 5 . . Feedback Events . | . . . . Feedback Blocked . | . . . . Robot Schematics Acquired . | . . . . Robots Built . | . . . . Authchips . | . . . . Time . | . . . . Total Robot Build Rating . | . . . . Part Schematics Acquired . | . . . . Parts Built . | . . . . Authchips . | . . . . Time . | . . . . Total Part Build Rating . | . . . . Parts Repaired . | . . . . Time . | . . . . Parts Recycled . | . . . . Recycled Matter . | . . . . Retrieved Matter . | . . . . Retrieved Components . | . . . . Parts Scanalyzed . | . . . . Part Schematics Acquired . | . . . . Parts Damaged . | . . . . Bothacking | -11 -10 -10 -10 ------------ Run | Yrd Mat Min Exi Used RIF Installer . | . . . . Robots Hacked . | . . . . Non-combat . | . . . . Combat . | . . . . Robot Hacks Applied . | . . . . Relay Couplers Released . | . . . . Fabnet Peak Effective % . | . . . . Robots Rewired . | . . . . Allies Hacked . | . . . . Hacks Repelled . | . . . . Allies | -11 -10 -10 -10 -------- Run | Yrd Mat Min Exi Total Allies . | . . . . Largest Group . | . . . . Highest-Rated Group . | . . . . Highest-Rated Ally . | . . . . Total Orders . | . . . . Ally Attacks 15 | . . . 15 Total Damage 72 | . . . 72 Kills . | . . . . Allies Corrupted . | . . . . Allies Melted . | . . . . Intel | -11 -10 -10 -10 ------- Run | Yrd Mat Min Exi Robot Analysis Total . | . . . . Derelict Logs Recovered 1 | . . 1 . Drone Launches 15 | . . . 15 Drone Recoveries 15 | . . . 15 Exploration | -11 -10 -10 -10 ------------- Run | Yrd Mat Min Exi Turns Passed 2081 | 115 1239 372 355 Spaces Moved 1508 | 69 862 343 234 Core 26 | 26 . . . Treads . | . . . . Legs . | . . . . Wheels 1482 | 43 862 343 234 Hover . | . . . . Flight . | . . . . Fastest Speed 50 | 50 80 95 95 Average Speed 101 | 74 104 95 104 Slowest Speed 110 | 100 110 110 110 Overloaded Moves . | . . . . Propulsion Burnouts . | . . . . Robots Hopped . | . . . . Cave-ins Triggered . | . . . . Exploration Rate (%) 52 | 3 87 76 42 Regions Visited 3 Branch Regions 2 Pre-discovered Areas . | . . . . Known Exits Taken . | . . . . Unknown Exits Taken 3 | 1 1 1 . Scrap Searched 1 | . . 1 . Spaces Dug . | . . . . Terrain Destroyed 5 | . . 5 . Melee . | . . . . Projectile . | . . . . AOE 5 | . . 5 . Terrain Rammed . | . . . . Walls Destroyed . | . . . . Machines Disabled . | . . . . Actions | -11 -10 -10 -10 --------- Run | Yrd Mat Min Exi Total 1799 | 102 1042 360 295 Wait 94 | . 64 . 30 Move 1505 | 68 861 342 234 Hop . | . . . . Pick Up . | . . . . Fast Attach 19 | 6 5 3 5 Attach . | . . . . Detach 1 | . . . 1 Swap 8 | . 8 . . Drop 18 | 1 10 3 4 Fire 124 | 27 66 10 21 Melee . | . . . . Ram 1 | . 1 . . Kick . | . . . . Crush . | . . . . Escape Stasis . | . . . . Rewire . | . . . . Trap . | . . . . Miscellaneous 29 | . 27 2 . Route ------- -11/Scrapyard -10/Materials (discovered 4 exits: [*Mat x3] / *Min) -10/Mines -10/Exiles (discovered 1 exit: [*Min]) History --------- Turn | Location | Event 10 | -11/Scrapyard | Upgraded with Utility slot (x1) 10 | -11/Scrapyard | Upgraded with Weapon slot (x3) 10 | -11/Scrapyard | Discovered new exit (range 16) 116 | -11/Scrapyard | Entered Materials 356 | -10/Materials | Discovered new exit (range 13) 530 | -10/Materials | Discovered new exit (range 7) 657 | -10/Materials | Discovered new exit (range 5) 678 | -10/Materials | Build established: Skirmisher 729 | -10/Materials | Reached level 2 963 | -10/Materials | Discovered new exit (range 16) 1315 | -10/Materials | Reached level 3 1355 | -10/Materials | Entered Mines 1366 | -10/Mines | Learned Materials stockpile data 1504 | -10/Mines | Found a damaged Exp. Sensor Array with a note attached 1507 | -10/Mines | Found Prototype Device 1507 | -10/Mines | Identified Exp. Sensor Array 1601 | -10/Mines | Assisted by bots powering up and referring to "LRC-V3" 1685 | -10/Mines | Received a Rocket Launcher from a helpful Derelict 1699 | -10/Mines | Found the Drone Emporium 1702 | -10/Mines | Found Prototype Device 1702 | -10/Mines | Identified Splice Drone Bay 1721 | -10/Mines | Deemed a non-threat by the Exiles lab entrance 1722 | -10/Mines | Discovered new exit (range 5) 1727 | -10/Mines | Entered Exiles 1742 | -10/Exiles | Discovered new exit (range 15) 1765 | -10/Exiles | Met 8R-AWN 1782 | -10/Exiles | Met EX-HEX 1818 | -10/Exiles | Met EX-BIN 1830 | -10/Exiles | Aligned with FarCom system 1831 | -10/Exiles | Given EX-Vault access code 1876 | -10/Exiles | Opened EX-Vault 1882 | -10/Exiles | Found Prototype Device 1882 | -10/Exiles | Identified Skeleton Box 1886 | -10/Exiles | Found Prototype Processor 1886 | -10/Exiles | Identified 0b10 Alert Chip 1890 | -10/Exiles | Found Prototype Device 1890 | -10/Exiles | Identified Trap Reconfigurator 1917 | -10/Exiles | Warned to stay clear of 0b10 Research branches 1942 | -10/Exiles | Attacked by the Exiles 1945 | -10/Exiles | Destroyed EX-BIN 1986 | -10/Exiles | Core integrity fell below 50% 2002 | -10/Exiles | Destroyed 7 combat bots 2020 | -10/Exiles | Core integrity fell below 20% 2082 | -10/Exiles | Destroyed by 8R-AWN with 8R-AWN's Boregun Last Messages --------------- 02073_ Splice Drone injecting 8R-AWN... 02074_ Splice Drone released from Splice Drone Bay. 02074_ Splice Drone sneak attacks. 02074_ Splice Drone injecting 8R-AWN... 02074_ HV Slug penetrates Splice Drone. 02074_ HV Slug penetrates EX-Vault Access. 02074_ HV Slug penetrates Splice Drone. 02074_ HV Slug penetrates EX-Vault Access. 02075_ Splice Drone released from Splice Drone Bay. 02075_ Splice Drone sneak attacks. 02075_ Splice Drone injecting 8R-AWN... 02075_ Splice Drone retrieved by Splice Drone Bay. 02079_ Splice Drone released from Splice Drone Bay. 02079_ Splice Drone sneak attacks. 02079_ Splice Drone injecting 8R-AWN... 02080_ Splice Drone released from Splice Drone Bay. 02080_ Splice Drone sneak attacks. 02080_ Splice Drone injecting 8R-AWN... 02080_ Splice Drone retrieved by Splice Drone Bay. 02082_ Penetrated by HV Slug. Map ----- +----------------------------------------------------+ | | | | | | | | | | | | | | | | | | | | | | | | | | | | | | | | | | | | | | | | | | | ????????????????????????#########????????????????? | | ????????????????????????# #????????????????? | | ????????????????????????# #????????????????? | | ????????????????????????# ! #????????????????? | | ????????????????????????#@ ! X#????????????????? | | ????????????????????????##g ##????????????????? | | ????????????????????????#X #?????????????????? | | ????????????????????????## #?????????????????? | | ?????????????????????????# #?????????????????? | | ?????????????????????????# #########?????????? | | ?????????????????????????# ##""""""#?????????? | | ?????????????????????????# ## """#?????????? | | ?????????????????????????# X""#?????????? | | ?????????????????????????# ## """#?????????? | | ?????????????????######### ##""""""#?????????? | | ?????????????????#""""""## #########?????????? | | ?????????????????#"""" ## #?????????????????? | | ?????????????????#""X" #?????????????????? | | ?????????????????#" #?????????????????? | | ?????????????????#" ## #?????????????????? | | ?????????????????#""""""## #?#########???????? | | ?????????????????##"#####" "##"""""""#???????? | | ????????????????? "????#" # #"""""""#???????? | | ????????????????"""???###" ##""""""""#???????? | | ????????????????"""???# "" ###"" """"#???????? | | ??????????????????????##" """"#???????? | | ???????????????????????#" """#???????? | | ???????????????????????## """#???????? | | ???????????????????????## %% "#???????? | +----------------------------------------------------+ Best States ------------- Heat Dissipation 79 Energy Generation 17 Energy Capacity 265 Matter Stores 300 Matter Capacity 300 Sight Range 16 Robot Scan Range 22 Terrain Scan Range 16 Terrain Scan Density 10 Resistance: KI 5 Evasion (%) 50 Offensive Hacking 15 Item Schematics ----------------- None Robot Schematics ------------------ None Fabricated ------------ Nothing Alien Tech Used ----------------- None Achievements -------------- Release The Drones! Challenges ------------ None RPGLIKE | -11 -10 -10 -10 --------- Run | Yrd Mat Min Exi Levels Raised 2 | . 2 . . XP Earned 7245 | 3000 3020 875 350 XP Spent 5930 | 2900 3030 . . Upgrades 22 | 4 18 . . Utility Slot 1 | 1 . . . Weapon Slot 3 | 3 . . . Core Integrity 2 | . 2 . . Heat Dissipation 9 | . 9 . . Energy Generation 1 | . 1 . . Mass Support 1 | . 1 . . Sensor Range 1 | . 1 . . Hack Attack % 3 | . 3 . . KI Resistance % 1 | . 1 . . Protomatter Created 348 | . 266 29 53 Integrity Restored 582 | . 555 27 . Core 470 | . 456 14 . Parts 112 | . 99 13 . Protomatter Decayed 124 | . 77 19 28 Game ------ Seed BombardmentThrowingLance Manual? 0 Play Time 00:19:53 Cumulative 29.9 hours Start 2024.05.13 @ 17:48:56 End 2024.05.13 @ 18:08:42 Sessions 1 Manual Loads 0 Difficulty Rogue Special Mode Winter2019/RPGLIKE Game No. 30 Rogue 30 Adventurer 0 Explorer 0 Win Type - Total 0 Types 0/0/0/0/0/0/0/0/0 Lore% 23 Gallery% 25 Achievement% 28 Wizard Run 0 Options --------- Layout 0 ASCII 0 Keyboard 0 Movement Mouse Keybinds 0 Fullscreen 2 Font 14/SmallcapsGlow Map View 36x27 Zoom Use 99% Tactical HUD 1 Map Filters NONE Filters NONE Steam 1 RUN: d536e728-b9ca-4c27-b6f7-3d447743ffc9